bitfinex/quotes_SOLUSD_20260224
["timestamp","ask_amount","ask_price","bid_price","bid_amount"]
[1771917604528,1.02922124,77.109,77.085,12.97269248]
[1771917604739,1.02922124,77.109,77.086,1.05610232]
[1771917609224,1.02922124,77.109,77.087,12.9723559]
[1771917609931,1.02922124,77.109,77.087,14.02845822]
[1771917610436,1.02922124,77.115,77.088,1.05610232]
[1771917610742,1.02922124,77.129,77.099,1.05610232]
[1771917612238,64.79416264,77.168,77.081,1.05610232]
[1771917612239,1.02922124,77.109,77.081,1.05610232]
[1771917612441,1.02922124,77.109,77.083,1.05610232]
[1771917614644,1.02922124,77.109,77.084,12.97286077]
[1771917614938,5.17607187,77.1,77.084,12.97286077]
[1771917615142,1.02922124,77.1,77.084,12.97286077]
[1771917616334,1.02922124,77.1,77.084,1.05610232]
[1771917617541,5.17607187,77.11,77.085,12.97269248]
[1771917619628,1.18580026,77.109,77.085,12.97269248]
[1771917619945,1.18580026,77.109,77.085,14.12016565]
[1771917620144,1.18580026,77.109,77.085,12.97269248]
[1771917620348,1.18580026,77.109,77.085,14.12016565]
[1771917620932,1.18580026,77.109,77.086,1.14747317]
[1771917621327,5.178059,77.1,77.086,1.14747317]
[1771917621944,5.178059,77.1,77.08,1.14747317]
[1771917622157,1.18580026,77.089,77.07,0.2]
[1771917622335,5.178059,77.08,77.07,0.2]
[1771917622647,1.18580026,77.083,77.07,0.2]
[1771917623537,5.178059,77.08,77.07,0.2]
[1771917623946,6.33805002,77.08,77.07,0.2]
[1771917624452,1.15999102,77.079,77.065,10.05264248]
[1771917625939,5.178059,77.08,77.065,10.05264248]
[1771917627644,5.178059,77.08,77.054,32.44437771]
[1771917627645,1.15999102,77.078,77.054,1.10192829]
[1771917627940,1.15999102,77.069,77.051,12.97841689]
[1771917629037,5.178059,77.06,77.05,0.2]
[1771917630554,1.15999102,77.089,77.051,12.97841689]
[1771917630737,12.96747756,77.116,77.049,19.37952693]
[1771917630738,1.15999102,77.059,77.049,19.37952693]
[1771917631038,1.15999102,77.059,77.04,0.2]
[1771917631443,1.15999102,77.059,77.02,0.2]
[1771917631444,1.15999102,77.059,77.021,1.10192829]
[1771917631641,1.15999102,77.059,77.021,12.98347204]
[1771917632046,1.15999102,77.059,77.021,45.44215214]
[1771917632248,1.15999102,77.059,77.021,12.98347204]
[1771917632452,1.15999102,77.049,77.02,0.2]
[1771917632760,1.15999102,77.039,77.01,0.2]
[1771917633233,1.15999102,77.039,77.011,45.44805287]
[1771917633943,1.15999102,77.039,77.012,1.10192829]
[1771917634748,1.15999102,77.039,77.014,1.10192829]
[1771917634958,1.15999102,77.039,77.02,5.178059]
[1771917636961,1.15999102,77.038,77.012,1.10192829]
[1771917638362,1.15999102,77.037,77.011,12.98515796]
[1771917639076,1.15999102,77.037,77.012,1.10192829]
[1771917640376,1.15999102,77.047,77.021,1.10192829]
[1771917640860,1.15999102,77.047,77.022,12.98330347]
[1771917641045,1.15999102,77.047,77.023,1.10192829]
[1771917643368,1.15999102,77.047,77.024,12.98296634]
[1771917644272,1.15999102,77.039,77.011,1.10192829]
[1771917644477,1.15999102,77.039,77.01,0.2]
[1771917645365,1.15999102,77.039,77.01,13.18527686]
[1771917646068,1.15999102,77.037,77.01,13.18527686]
[1771917646757,1.15999102,77.045,77.011,1.10192829]
[1771917647779,1.15999102,77.039,77.011,1.10192829]
[1771917649375,1.19275936,77.019,77.0,0.2]
[1771917651053,1.19275936,77.019,77.001,12.98684432]
[1771917653274,1.19275936,77.038,77.002,1.18326479]
[1771917653472,1.19275936,77.038,77.001,12.98684432]
[1771917653473,1.19275936,77.038,77.011,1.18326479]
[1771917657370,1.19275936,77.036,77.011,1.18326479]
[1771917660776,1.19275936,77.045,77.013,1.18326479]
[1771917661665,1.19275936,77.065,77.031,1.18326479]
[1771917662273,1.19275936,77.065,77.012,110.37240949]
[1771917662274,5.178059,77.1,77.051,1.18326479]
[1771917662473,1.19275936,77.099,77.071,1.18326479]
[1771917662765,1.19275936,77.119,77.091,1.18326479]
[1771917665086,1.19275936,77.126,77.093,1.18326479]
[1771917665388,12.96529191,77.129,77.101,1.18326479]
[1771917666583,1.19275936,77.128,77.101,1.18326479]
[1771917667079,1.18849035,77.119,77.087,12.9723524]
[1771917667681,1.18849035,77.119,77.087,14.15561719]
[1771917668394,1.18849035,77.119,77.088,1.18326479]
[1771917669193,12.96714126,77.118,77.088,1.18326479]
[1771917669395,1.17874324,77.099,77.07,5.178059]
[1771917669579,1.17874324,77.099,77.069,1.18326479]
[1771917670096,1.17395348,77.106,77.071,1.18326479]
[1771917670589,12.96714126,77.118,77.091,1.18326479]
[1771917670789,5.178059,77.12,77.091,1.18326479]
[1771917670996,12.96680497,77.12,77.091,1.18326479]
[1771917672873,1.15991179,77.119,77.091,1.18326479]
[1771917673495,1.15991179,77.119,77.092,1.18326479]
[1771917673682,12.96714126,77.118,77.092,1.18326479]
[1771917676081,1.14634841,77.117,77.087,12.9723347]
[1771917676478,1.14634841,77.117,77.053,51.91175996]
[1771917676479,5.178059,77.1,77.059,1.18326479]
[1771917676682,1.14193074,77.079,77.051,1.18326479]
[1771917677780,3.69383402,77.115,77.051,1.18326479]
[1771917678098,12.97037167,77.099,77.063,1.18326479]
[1771917678302,14.10361872,77.099,77.063,1.18326479]
[1771917679510,1.12897986,77.089,77.057,12.97725751]
[1771917679798,1.12897986,77.089,77.058,1.16495501]
[1771917680508,12.97218762,77.088,77.058,1.16495501]
[1771917680685,14.09694931,77.088,77.058,1.16495501]
[1771917681102,1.12059197,77.087,77.058,1.16495501]
[1771917682007,1.12059197,77.087,77.06,1.16495501]
[1771917683608,1.10836796,77.085,77.06,1.16495501]
[1771917684990,1.10836796,77.085,77.061,12.97673271]
[1771917685208,1.10836796,77.085,77.062,1.12458179]
[1771917686409,12.97286077,77.084,77.062,1.12458179]
[1771917687389,1.09271455,77.083,77.045,1.12458179]
[1771917687591,11.56442956,77.06,77.031,1.12458179]
[1771917687798,1.08891292,77.076,77.031,1.12458179]
[1771917688012,1.08891292,77.079,77.041,1.12458179]
[1771917688485,12.97387062,77.078,77.043,1.12458179]
[1771917688685,11.56442956,77.08,77.051,1.12458179]
[1771917688916,12.9737023,77.079,77.051,1.12458179]
[1771917690217,14.05514245,77.079,77.051,1.12458179]
[1771917691322,14.05514245,77.079,77.053,1.12458179]
[1771917691503,14.05047705,77.085,77.053,1.12458179]
[1771917691704,1.07413807,77.078,77.032,1.12458179]
[1771917691903,11.56442956,77.06,77.032,1.12458179]
[1771917692621,12.97664438,77.062,77.034,1.12458179]
[1771917693426,12.63497937,77.06,77.034,1.12458179]
[1771917694717,14.04056596,77.059,77.034,1.12458179]
[1771917695429,1.06349645,77.065,77.036,1.12458179]
[1771917695621,1.06349645,77.049,77.011,1.12458179]
[1771917696907,12.62103376,77.04,77.013,1.12458179]
[1771917697222,11.56442956,77.03,77.013,1.12458179]
[1771917697424,1.0566042,77.039,77.013,1.12458179]
[1771917698122,11.56442956,77.03,77.013,1.12458179]
[1771917698429,1.05321733,77.029,77.006,1.12458179]
[1771917699830,1.05321733,77.029,77.0,0.2]
[1771917700029,5.18886832,77.01,76.989,1.12458179]
[1771917700326,1.04655986,77.019,76.991,1.12458179]
[1771917701422,12.98397777,77.018,76.991,1.12458179]
[1771917701644,1.04328836,77.017,76.991,1.12458179]
[1771917702432,37.64825553,77.02,76.993,1.12458179]
[1771917702433,5.18886832,77.02,76.993,1.12458179]
[1771917702634,1.04005444,77.029,77.001,1.12458179]
[1771917703231,14.02217805,77.029,77.001,1.12458179]
[1771917703818,1.0336976,77.019,76.981,1.12458179]
[1771917704112,5.18886832,77.02,76.981,1.12458179]
[1771917705427,5.18886832,77.04,77.001,1.12458179]
[1771917705428,37.63994353,77.04,77.001,1.12458179]
[1771917705828,12.98103007,77.036,77.003,1.12458179]
[1771917706022,1.02748595,77.035,77.003,1.12458179]
[1771917706215,5.18886832,77.03,77.003,1.12458179]
[1771917706928,5.18886832,77.03,77.003,1.00813695]
[1771917707423,6.32682095,77.03,77.003,1.00813695]
[1771917707627,6.32682095,77.03,77.002,12.98667567]
[1771917707628,1.13786102,77.016,76.974,12.99139969]
[1771917707813,1.13786102,77.009,76.981,12.99021836]
[1771917708012,14.12335622,77.009,76.981,12.99021836]
[1771917708619,12.9854952,77.009,76.981,12.99021836]
[1771917708820,12.98380918,77.019,76.981,12.99021836]
[1771917709026,12.98380918,77.019,76.982,1.08240369]
[1771917709634,14.09457146,77.019,76.982,1.08240369]
[1771917710015,1.11076228,77.018,76.983,12.98988088]
[1771917710232,1.11076228,77.018,76.984,1.08240369]
[1771917712134,5.18886832,76.99,76.956,1.08240369]
[1771917712326,5.18886832,77.0,76.971,1.08240369]
[1771917712720,1.11076228,77.005,76.971,1.08240369]
[1771917712917,12.98414635,77.017,76.981,1.08240369]
[1771917713245,12.98318374,77.023,76.991,1.08240369]
[1771917713421,5.18886832,77.02,76.991,1.08240369]
[1771917715344,1.11076228,77.019,76.993,1.08240369]
[1771917716038,1.11076228,77.017,76.974,1.08240369]
[1771917716341,6.2996306,77.01,76.976,1.08240369]
[1771917717442,5.18886832,77.01,76.98,5.18886832]
[1771917717626,12.98431494,77.016,76.981,1.08240369]
[1771917718243,1.1055848,77.015,76.981,1.08240369]
[1771917719220,3.69383402,77.039,76.991,1.08240369]
[1771917719221,12.98260594,77.027,76.991,1.08240369]
[1771917719418,12.98260594,77.027,76.992,12.98836242]
[1771917719639,1.10275203,77.019,76.987,1.08240369]
[1771917719844,1.09995179,77.009,76.972,1.08240369]
[1771917720828,6.28605203,77.0,76.972,1.08240369]
[1771917721447,36.14914305,77.029,76.972,1.08240369]
[1771917721448,12.98600109,77.006,76.973,12.99156847]
[1771917721662,1.09718371,77.005,76.974,1.08240369]
[1771917722349,1.09718371,77.005,76.941,3.69383402]
[1771917722350,1.09444743,76.989,76.966,1.08240369]
[1771917722927,1.09444743,76.989,76.96,1.08240369]
[1771917724843,5.18886832,77.02,76.981,1.08240369]
[1771917725029,6.27529405,77.02,76.991,1.08240369]
[1771917725230,1.11076228,77.019,76.99,5.18886832]
[1771917725749,1.11076228,77.019,76.98,5.18886832]
[1771917725937,1.11076228,77.038,77.0,5.18886832]
[1771917726255,1.11076228,77.038,77.01,5.18886832]
[1771917726435,5.18886832,77.04,77.015,1.08240369]
[1771917726946,5.18886832,77.04,76.973,5.36086188]
[1771917726947,5.18886832,77.04,77.001,1.08240369]
[1771917727329,11.57902082,77.04,77.001,1.08240369]
[1771917727646,11.57902082,77.05,77.011,1.08240369]
[1771917728653,1.05031868,77.049,77.011,1.08240369]
[1771917730146,12.97892223,77.048,77.013,1.08240369]
[1771917730536,14.02422247,77.048,77.013,1.08240369]
[1771917731346,14.02422247,77.048,77.015,1.08240369]
[1771917731551,1.05478125,77.047,77.015,1.08240369]
[1771917734054,1.08260023,77.045,77.015,1.08240369]
[1771917734256,1.08260023,77.045,77.016,12.98431494]
[1771917734450,1.08260023,77.045,77.017,1.08240369]
[1771917734650,1.08260023,77.039,77.007,1.08240369]
[1771917734834,1.08260023,77.039,77.009,1.08240369]
[1771917736138,14.08121417,77.038,77.009,1.08240369]
[1771917736455,1.1006072,77.037,77.009,1.08240369]
[1771917737240,1.1006072,77.037,77.01,1.08240369]
[1771917738136,12.98094397,77.036,77.012,1.08655354]
[1771917738439,12.97649606,77.063,77.031,1.08655354]
[1771917741562,1.13217611,77.066,77.033,1.08655354]
[1771917743446,12.97572242,77.067,77.041,1.06544047]
[1771917743645,1.08808897,77.066,77.041,1.06544047]
[1771917743974,12.97572242,77.067,77.041,1.06544047]
[1771917744358,12.97572242,77.067,77.042,1.06544047]
[1771917745262,11.56935891,77.1,77.042,1.06544047]
[1771917745462,1.08808897,77.085,77.051,1.06544047]
[1771917745657,1.08808897,77.085,77.053,1.06544047]
[1771917745843,11.56935891,77.08,77.053,1.06544047]
[1771917746047,1.08808897,77.069,77.037,1.06544047]
[1771917747453,0.28432314,77.068,76.993,1.06544047]
[1771917747659,11.56935891,77.02,76.993,1.06544047]
[1771917747856,12.65744788,77.02,76.993,1.06544047]
[1771917748068,25.64120291,77.02,76.993,1.06544047]
[1771917748369,25.64120291,77.02,76.95,11.56935891]
[1771917748370,1.08808897,77.009,76.981,1.06544047]
[1771917748673,1.08808897,77.009,76.981,14.05565883]
[1771917750448,1.08808897,77.009,76.982,1.06544047]
[1771917750654,11.56935891,77.01,76.982,1.06544047]
[1771917751474,12.9854952,77.009,76.982,1.06544047]
[1771917751969,11.56935891,77.01,76.982,1.06544047]
[1771917752175,24.55476342,77.01,76.984,1.06544047]
[1771917753552,11.56935891,77.01,76.984,1.06544047]
[1771917754572,11.56935891,77.01,76.985,12.98954341]
[1771917754877,11.56935891,77.01,76.986,1.06544047]
[1771917756073,1.08808897,77.027,76.987,1.34976361]
[1771917756258,1.08808897,77.019,76.991,1.06544047]
[1771917756459,11.56935891,77.01,76.991,1.06544047]
[1771917756661,12.65744788,77.01,76.972,1.06544047]
[1771917758261,25.6428226,77.01,76.974,1.06544047]
[1771917759577,1.08808897,76.999,76.976,1.06544047]
[1771917760771,11.56935891,77.0,76.976,1.06544047]
[1771917762186,24.55653329,77.0,76.976,1.06544047]
[1771917762688,1.08808897,77.006,76.978,1.06544047]
[1771917762888,11.56935891,77.0,76.978,1.06544047]
[1771917763283,1.08808897,76.999,76.958,12.99410067]
[1771917763584,45.45159404,77.005,76.951,1.06544047]
[1771917763585,5.19234224,76.97,76.951,1.06544047]
[1771917764882,5.19234224,76.99,76.953,1.06544047]
[1771917765270,12.98718165,76.999,76.961,1.06544047]
[1771917765772,5.19234224,77.0,76.961,1.06544047]
[1771917766784,5.19234224,77.0,76.963,1.06544047]
[1771917767086,18.17766882,77.01,76.971,1.06544047]
[1771917767268,24.57410594,77.01,76.971,1.06544047]
[1771917768085,11.58877936,77.01,76.971,1.06544047]
[1771917768874,11.58877936,77.01,76.973,1.15658309]
[1771917770169,12.98428758,77.017,76.973,1.15658309]
[1771917770477,11.58877936,77.02,76.988,0.28432314]
[1771917770670,12.98068935,77.038,77.001,1.15658309]
[1771917770874,11.58877936,77.04,77.003,1.15658309]
[1771917772677,12.97892223,77.048,76.98,1.15658309]
[1771917772678,1.23007681,77.009,76.98,1.15658309]
[1771917772888,11.58877936,77.0,76.981,1.15658309]
[1771917773073,14.21568041,77.009,76.981,1.15658309]
[1771917774499,14.21568041,77.009,76.982,12.99004962]
[1771917775184,1.23007681,77.008,76.982,12.99004962]
[1771917776297,1.23007681,77.006,76.981,1.15658309]
[1771917777003,1.23007681,77.006,76.982,12.99004962]
[1771917778501,1.23007681,77.019,76.991,1.15658309]
[1771917778895,1.23007681,77.019,76.983,1.15658309]
[1771917779096,11.58877936,77.02,76.983,1.15658309]
[1771917779097,11.58877936,77.01,76.983,1.15658309]
[1771917779896,1.23007681,77.011,76.983,1.15658309]
[1771917780888,12.98532658,77.01,76.983,1.15658309]
[1771917781299,12.9847267,77.014,76.985,1.15658309]
[1771917781602,1.23007681,77.028,76.985,1.15658309]
[1771917781901,1.23007681,77.028,76.991,1.15658309]
[1771917782197,11.58877936,77.01,76.982,1.15658309]
[1771917782395,1.23007681,77.009,76.982,14.1465788]
[1771917782701,1.23007681,77.019,76.983,1.15658309]
[1771917783501,1.23007681,77.017,76.983,1.15658309]
[1771917783705,1.23007681,77.017,76.985,1.15658309]
[1771917786091,12.98431494,77.016,76.985,1.15658309]
[1771917786291,1.23007681,77.015,76.985,1.15658309]
[1771917789310,1.23007681,77.04,77.011,1.15658309]
[1771917789494,6.41640942,77.04,77.011,1.15658309]
[1771917789690,1.23007681,77.039,77.011,1.15658309]
[1771917791096,12.98060697,77.038,77.011,1.15658309]
[1771917794093,12.98060697,77.038,77.013,1.15658309]
[1771917798118,12.98060697,77.038,77.012,12.98498935]
[1771917798119,12.97959607,77.044,77.015,1.23594096]
[1771917798414,14.20847801,77.044,77.015,1.23594096]
[1771917799391,1.22888194,77.043,77.015,1.23594096]
[1771917800716,12.97993302,77.042,77.015,1.23594096]
[1771917801611,14.20881496,77.042,77.015,1.23594096]
[1771917803422,1.25874753,77.041,77.015,1.23594096]
[1771917803625,12.83600759,77.04,77.015,1.23594096]
[1771917803808,1.25874753,77.04,77.015,1.23594096]
[1771917804603,1.25874753,77.04,77.016,1.23865313]
[1771917805915,1.25874753,77.053,77.021,1.23865313]
[1771917806103,1.25874753,77.058,77.021,1.23865313]
[1771917806729,1.25874753,77.049,77.021,1.23865313]
[1771917807024,1.25874753,77.039,77.01,24.56244244]
[1771917807720,1.25874753,77.039,77.01,11.57726006]
[1771917808805,12.98060697,77.038,77.011,1.23865313]
[1771917809121,1.25874753,77.037,77.011,1.23865313]
[1771917809424,1.25874753,77.037,77.013,1.23865313]
[1771917811329,1.25874753,77.029,77.0,11.57726006]
[1771917811634,1.25874753,77.029,76.999,1.23865313]
[1771917811832,1.25874753,77.029,77.001,1.23865313]
[1771917813120,11.57726006,77.03,77.001,1.23865313]
[1771917813430,14.23868055,77.042,77.011,1.23865313]
[1771917813928,1.25874753,77.041,77.011,1.23865313]
[1771917815439,1.25874753,77.039,77.013,1.23865313]
[1771917818028,1.25874753,77.037,76.984,1.23865313]
[1771917818329,1.25874753,77.019,76.985,1.23865313]
[1771917818531,1.25874753,77.019,76.963,5.36086188]
[1771917818532,1.25874753,77.009,76.971,1.23865313]
[1771917819239,1.25874753,77.009,76.972,1.23865313]
[1771917819944,1.25874753,77.009,76.981,1.23865313]
[1771917820232,14.24441135,77.008,76.982,1.23865313]
[1771917820420,1.25874753,77.007,76.982,1.23865313]
[1771917822225,1.25874753,77.007,76.984,1.23865313]
[1771917823225,1.25874753,77.027,76.993,1.23865313]
[1771917824332,12.98262924,77.026,76.993,1.23865313]
[1771917825944,12.98207085,77.03,77.001,1.23865313]
[1771917826835,1.25874753,77.039,77.001,1.23865313]
[1771917828541,14.23925384,77.039,77.003,1.2937243]
[1771917830350,1.37183935,77.038,77.003,1.2937243]
[1771917830730,1.37183935,77.038,77.005,1.2937243]
[1771917831822,12.98077547,77.037,77.005,1.2937243]
[1771917832249,12.98077547,77.037,77.01,5.18655465]
[1771917832432,12.98077547,77.037,77.011,1.2937243]
[1771917832630,14.34933298,77.057,77.022,12.98330347]
[1771917832840,1.37183935,77.056,77.023,1.2937243]
[1771917833938,1.37183935,77.056,77.025,1.2937243]
[1771917837730,1.37183935,77.056,77.027,1.2937243]
[1771917837926,5.18655465,77.05,77.022,1.2937243]
[1771917838127,1.37183935,77.049,77.022,1.2937243]
[1771917838746,1.37183935,77.029,77.007,12.98574501]
[1771917838938,1.37183935,77.029,77.008,1.2937243]
[1771917839833,1.37183935,77.029,77.009,12.9854952]
[1771917840034,1.37183935,77.029,77.009,14.2792195]
[1771917842144,1.37183935,77.029,77.0,5.18655465]
[1771917842145,1.37183935,77.038,77.01,1.2937243]
[1771917842351,1.37183935,77.038,77.011,1.2937243]
[1771917842931,1.37183935,77.037,77.011,1.2937243]
[1771917843650,1.37183935,77.068,77.031,1.2937243]
[1771917844030,1.37183935,77.047,77.013,1.2937243]
[1771917845432,1.37183935,77.039,77.013,1.2937243]
[1771917846453,1.37183935,77.039,77.015,1.2937243]
[1771917847652,1.37183935,77.045,77.015,1.2937243]
[1771917847951,1.37183935,77.045,77.021,1.2937243]
[1771917848538,1.37183935,77.058,77.031,1.2937243]
[1771917848934,3.69383402,77.079,77.051,1.2937243]
[1771917849133,1.37183935,77.089,77.061,1.2937243]
[1771917849853,14.34394315,77.089,77.061,1.2937243]
[1771917850258,1.37183935,77.095,77.071,1.2937243]
[1771917850479,1.37183935,77.119,77.083,1.2937243]
[1771917850755,1.37183935,77.119,77.091,1.2937243]
[1771917852756,5.38655465,77.13,77.111,1.2937243]
[1771917852757,0.2,77.13,77.111,1.2937243]
[1771917852939,1.37183935,77.129,77.092,1.2937243]
[1771917853135,1.37183935,77.119,77.092,1.2937243]
[1771917854554,0.2,77.13,77.11,5.18655465]
[1771917854734,0.2,77.13,77.111,12.96831839]
[1771917855148,0.2,77.13,77.112,1.2937243]
[1771917856341,0.2,77.15,77.121,1.2937243]
[1771917856654,1.37183935,77.149,77.094,5.36086188]
[1771917856851,5.18655465,77.14,77.111,1.38633407]
[1771917857052,0.07919734,77.146,77.111,1.38633407]
[1771917857252,12.9619308,77.149,77.111,1.38633407]
[1771917857459,0.2,77.15,77.121,1.38633407]
[1771917858651,0.2,77.15,77.123,1.38633407]
[1771917858857,0.2,77.15,77.131,1.38633407]
[1771917860338,0.2,77.17,77.141,1.38633407]
[1771917860541,5.38655465,77.17,77.141,1.38633407]
[1771917860740,5.28655465,77.19,77.151,1.38633407]
[1771917860955,5.18655465,77.18,77.151,1.38633407]
[1771917861263,0.1,77.19,77.161,1.38633407]
[1771917861864,0.1,77.19,77.171,1.38633407]
[1771917862859,5.18655465,77.18,77.15,5.18655465]
[1771917863055,1.36072551,77.179,77.15,5.18655465]
[1771917863361,1.36072551,77.179,77.13,5.36086188]
[1771917863362,1.36072551,77.179,77.14,5.16848248]
[1771917864165,1.36072551,77.179,77.15,5.16848248]
[1771917864358,1.29800182,77.189,77.15,5.16848248]
[1771917864739,12.95538166,77.188,77.152,12.96142679]
[1771917864951,1.23599857,77.187,77.153,1.33943308]
[1771917865159,0.1,77.19,77.161,1.33943308]
[1771917865976,5.36848248,77.2,77.181,1.33943308]
[1771917865977,0.2,77.2,77.181,1.33943308]
[1771917866445,1.27470749,77.199,77.172,1.33943308]
[1771917866848,1.27470749,77.199,77.161,1.33943308]
[1771917867057,1.27470749,77.199,77.16,5.16848248]
[1771917867058,1.2141204,77.198,77.163,1.33943308]
[1771917868148,12.95353566,77.199,77.143,5.36086188]
[1771917868365,5.16848248,77.15,77.12,1.33943308]
[1771917868552,5.16848248,77.14,77.101,12.97000038]
[1771917868753,5.16848248,77.14,77.11,5.16848248]
[1771917868948,12.96041888,77.158,77.121,12.96663684]
[1771917869153,5.16848248,77.15,77.115,12.96754193]
[1771917869351,1.29840893,77.157,77.115,12.96754193]
[1771917869552,1.29840893,77.168,77.13,11.54514243]
[1771917870570,1.29840893,77.168,77.131,1.33943308]
[1771917871063,11.54514243,77.16,77.131,1.33943308]
[1771917871378,1.21778392,77.149,77.117,1.33943308]
[1771917872165,12.71967653,77.14,77.106,1.33943308]
[1771917872362,1.1745341,77.139,77.106,1.33943308]
[1771917873373,11.54514243,77.16,77.121,1.33943308]
[1771917873552,1.13178105,77.178,77.121,1.33943308]
[1771917873878,1.11761977,77.169,77.131,1.33943308]
[1771917875089,11.54514243,77.17,77.141,1.33943308]
[1771917875370,11.54514243,77.17,77.14,11.54514243]
[1771917875371,1.10362114,77.177,77.143,1.33943308]
[1771917875579,1.10362114,77.177,77.151,1.33943308]
[1771917877380,14.03350049,77.176,77.151,1.33943308]
[1771917880162,1.03600322,77.159,77.136,12.96404148]
[1771917880675,3.69383402,77.189,77.151,1.33943308]
[1771917880676,11.54514243,77.18,77.151,1.33943308]
[1771917880863,1.02294204,77.179,77.144,1.33943308]
[1771917881175,12.56808447,77.16,77.136,12.96404148]
[1771917881878,1.02294204,77.16,77.136,12.96404148]
[1771917882677,1.02294204,77.16,77.133,1.33943308]
[1771917882678,12.56808447,77.16,77.133,1.33943308]
[1771917883071,12.96025091,77.159,77.133,1.33943308]
[1771917884256,3.69383402,77.189,77.133,1.33943308]
[1771917884455,0.2,77.2,77.101,3.69383402]
[1771917884456,0.98465175,77.176,77.141,1.33943308]
[1771917884663,0.97218039,77.159,77.134,1.33943308]
[1771917885977,0.95985228,77.169,77.136,1.33943308]
[1771917887281,13.91842372,77.169,77.136,1.33943308]
[1771917888281,0.92371106,77.168,77.138,0.94827845]
[1771917888779,0.91193966,77.191,77.151,0.94827845]
[1771917888962,0.2,77.2,77.139,0.28432314]
[1771917888963,0.91193966,77.179,77.141,0.94827845]
[1771917890482,13.85736378,77.178,77.143,0.94827845]
[1771917890887,0.90030348,77.178,77.151,0.94827845]
[1771917891185,12.95648101,77.182,77.151,0.94827845]
[1771917891481,0.88880094,77.187,77.151,0.94827845]
[1771917891687,0.88880094,77.187,77.161,0.94827845]
[1771917892666,0.88880094,77.187,77.162,12.95974702]
[1771917892667,12.95571735,77.186,77.162,12.95974702]
[1771917892871,12.95571735,77.186,77.162,0.94827845]
[1771917893569,0.88880094,77.187,77.162,0.94827845]
[1771917893570,12.95497574,77.191,77.162,0.94827845]
[1771917894085,11.54514243,77.19,77.162,0.94827845]
[1771917894668,12.95497574,77.191,77.164,0.94827845]
[1771917894878,0.85507999,77.195,77.164,0.94827845]
[1771917895080,0.2,77.2,77.171,0.94827845]
[1771917895282,0.2,77.2,77.181,0.94827845]
[1771917896480,0.1,77.21,77.182,0.94827845]
[1771917896684,0.1,77.21,77.191,0.94827845]
[1771917896881,0.1,77.21,77.182,32.39089721]
[1771917897094,0.1,77.21,77.183,0.94827845]
[1771917897482,0.1,77.21,77.184,0.94827845]
[1771917897882,0.1,77.21,77.191,0.94827845]
[1771917898286,0.98829004,77.209,77.178,12.95698895]
[1771917899326,0.1,77.21,77.181,0.94827845]
[1771917899609,0.1,77.21,77.191,0.94827845]
[1771917899788,0.98829004,77.199,77.164,0.94827845]
[1771917899986,11.54514243,77.19,77.164,13.90758821]
[1771917900185,12.53343247,77.19,77.164,0.94827845]
[1771917900387,0.98829004,77.189,77.164,0.94827845]
[1771917901412,24.50021447,77.19,77.164,0.94827845]
[1771917901597,12.95507204,77.19,77.164,0.94827845]
[1771917901992,11.54514243,77.18,77.146,0.94827845]
[1771917902304,11.54514243,77.17,77.137,0.94827845]
[1771917902910,0.28432314,77.189,77.137,0.94827845]
[1771917903214,12.95370346,77.198,77.151,0.94827845]
[1771917903408,18.12461084,77.18,77.153,0.94827845]
[1771917903725,5.16786782,77.18,77.153,0.94827845]
[1771917904018,12.95689241,77.179,77.153,0.94827845]
[1771917904219,5.16786782,77.17,77.144,0.94827845]
[1771917905318,0.23819421,77.178,77.144,0.94827845]
[1771917905906,12.95722818,77.177,77.145,12.96260289]
[1771917906102,12.95722818,77.177,77.146,0.94827845]
[1771917906700,5.16786782,77.18,77.146,0.94827845]
[1771917906915,5.16786782,77.18,77.151,0.94827845]
[1771917907818,5.16786782,77.16,77.135,0.94827845]
[1771917908021,0.19972408,77.159,77.129,0.94827845]
[1771917908521,5.16786782,77.16,77.129,0.94827845]
[1771917909021,18.12801299,77.16,77.131,0.94827845]
[1771917910130,5.16786782,77.15,77.124,0.94827845]
[1771917910534,5.16786782,77.14,77.117,13.91558786]
[1771917910704,5.16786782,77.14,77.118,0.94827845]
[1771917911126,5.16786782,77.13,77.11,0.94827845]
[1771917911429,12.96361114,77.139,77.112,0.94827845]
[1771917916926,5.16786782,77.12,77.096,0.94827845]
[1771917917104,5.16786782,77.13,77.096,0.94827845]
[1771917917309,11.551591,77.13,77.096,0.94827845]
[1771917918526,12.96361114,77.139,77.101,0.84465304]
[1771917920320,11.551591,77.16,77.121,0.84465304]
[1771917920526,12.95924318,77.165,77.131,0.84465304]
[1771917920709,11.551591,77.18,77.141,0.84465304]
[1771917921932,11.551591,77.19,77.151,0.84465304]
[1771917922110,11.551591,77.2,77.161,0.84465304]
[1771917922425,11.551591,77.2,77.163,0.84465304]
[1771917923414,11.52973079,77.2,77.165,0.80684953]
[1771917924928,11.62973079,77.21,77.169,0.80684953]
[1771917925936,11.62973079,77.21,77.17,45.35441233]
[1771917926136,11.62973079,77.21,77.171,0.80684953]
[1771917927016,0.2,77.2,77.173,0.80684953]
[1771917927435,0.0244998,77.199,77.172,12.95806769]
[1771917927945,11.72973079,77.19,77.172,12.95806769]